bitfinex/quotes_ETHUSD_20260228
["timestamp","ask_amount","ask_price","bid_price","bid_amount"]
[1772308502682,0.4826935,1949.0,1948.3,0.45491425]
[1772308502887,0.4826935,1949.0,1948.3,0.001]
[1772308504287,5.61326658,1949.4,1948.4,0.45391425]
[1772308504492,0.4826935,1949.4,1948.7,3.87845879]
[1772308504700,0.4826935,1949.4,1948.7,0.45391425]
[1772308506472,0.4826935,1949.2,1948.5,0.45391425]
[1772308507393,1.76518113,1949.4,1948.6,0.45391425]
[1772308508894,0.4826935,1949.3,1948.6,1.73686621]
[1772308509567,0.4826935,1949.3,1948.4,0.001]
[1772308510589,0.4826935,1949.3,1948.4,1.28408223]
[1772308510795,0.4826935,1949.1,1948.4,0.001]
[1772308511403,0.4826935,1949.3,1948.5,5.24869114]
[1772308511708,0.4826935,1949.3,1948.6,0.45391425]
[1772308512987,1.76520987,1949.3,1948.7,1.28290655]
[1772308513202,0.4826935,1949.2,1948.4,0.001]
[1772308513668,0.4826935,1949.2,1948.4,1.28409895]
[1772308513997,0.4826935,1949.2,1948.5,0.45391425]
[1772308514973,1.28264327,1949.1,1948.5,1.73693373]
[1772308515895,1.76533677,1949.1,1948.4,1.28405247]
[1772308516092,0.4826935,1949.0,1948.4,0.001]
[1772308517086,1.28277489,1948.9,1948.4,0.001]
[1772308517397,1.740587,1948.9,1948.4,0.001]
[1772308517795,0.45781211,1948.8,1948.4,0.001]
[1772308519194,0.45781211,1949.1,1948.4,0.001]
[1772308520195,1.74032378,1949.3,1948.4,0.48676738]
[1772308520572,0.45781211,1949.2,1948.4,0.48676738]
[1772308520772,0.45781211,1949.2,1948.4,2.24776738]
[1772308521199,1.28264327,1949.1,1948.5,1.28303823]
[1772308521399,1.74043992,1949.2,1948.5,1.28303823]
[1772308522307,1.28262781,1949.2,1948.5,1.76880561]
[1772308522512,1.28255393,1949.3,1948.6,0.48576738]
[1772308523415,5.12979937,1949.4,1948.6,0.48576738]
[1772308523416,5.12979937,1949.4,1948.7,1.28290655]
[1772308524618,5.58761148,1949.4,1948.6,1.76868928]
[1772308526222,1.74025799,1949.4,1948.6,1.76868928]
[1772308526908,0.45781211,1949.4,1948.7,0.48576738]
[1772308527075,1.28243448,1949.5,1948.8,0.48576738]
[1772308527909,1.28243448,1949.5,1948.9,1.28277489]
[1772308528087,1.28243448,1949.5,1948.8,1.76855801]
[1772308528088,1.74024659,1949.5,1948.8,1.76855801]
[1772308529108,1.28225716,1949.7,1948.9,0.48576738]
[1772308529294,0.45781211,1949.6,1948.9,0.48576738]
[1772308529605,1.28225716,1949.7,1948.9,0.48576738]
[1772308529827,1.28225716,1949.7,1949.0,2.24476738]
[1772308530183,1.28412161,1949.9,1949.2,0.48576738]
[1772308530496,1.74193372,1949.9,1949.2,0.48576738]
[1772308531936,0.45781211,1949.8,1949.2,0.48576738]
[1772308532432,0.45781211,1949.5,1948.5,1.76977385]
[1772308532581,0.45781211,1949.5,1948.5,0.001]
[1772308532893,0.45781211,1949.4,1948.5,0.001]
[1772308533616,0.45781211,1949.4,1948.5,1.28402563]
[1772308534614,0.45781211,1949.2,1948.5,1.28402563]
[1772308535814,0.45781211,1949.2,1948.5,0.001]
[1772308536686,1.74045538,1949.1,1948.5,0.001]
[1772308537310,0.45781211,1949.0,1948.5,0.001]
[1772308539482,0.45781211,1949.2,1948.5,0.001]
[1772308539898,1.74039651,1949.2,1948.5,0.48676738]
[1772308540316,0.45781211,1949.1,1948.5,0.48676738]
[1772308540612,0.45781211,1949.1,1948.5,0.001]
[1772308540988,1.74047407,1949.1,1948.5,0.001]
[1772308541191,0.45781211,1949.0,1948.5,0.001]
[1772308541589,0.45781211,1949.0,1948.6,0.001]
[1772308543400,0.45781211,1948.9,1948.6,0.001]
[1772308545817,0.45588106,1948.8,1948.6,0.001]
[1772308546522,0.45588106,1948.8,1948.5,0.001]
[1772308548404,0.49889202,1949.5,1948.5,0.48091599]
[1772308548724,0.49889202,1949.4,1948.5,0.48091599]
[1772308549938,0.49889202,1949.2,1948.5,0.48091599]
[1772308550803,0.49889202,1949.2,1948.5,1.76389616]
[1772308551734,0.49889202,1949.2,1948.6,0.47991599]
[1772308552315,0.49889202,1949.1,1948.5,0.001]
[1772308553115,0.49889202,1948.9,1948.3,0.001]
[1772308553352,0.49889202,1949.3,1948.3,0.47991599]
[1772308553557,0.49889202,1949.2,1948.3,0.47991599]
[1772308555116,0.49889202,1949.0,1948.4,0.47991599]
[1772308555438,1.75,1948.9,1948.4,0.47991599]
[1772308556251,2.24889202,1948.9,1948.4,0.47991599]
[1772308557226,1.75,1948.9,1948.5,0.47991599]
[1772308558319,1.75,1948.9,1948.1,1.76421561]
[1772308558320,0.49889202,1948.8,1948.1,1.76421561]
[1772308558530,0.49889202,1948.8,1948.2,0.47991599]
[1772308559115,0.49889202,1948.7,1948.2,0.47991599]
[1772308559527,0.49889202,1948.7,1948.1,0.001]
[1772308560431,1.748,1948.6,1948.1,0.48091599]
[1772308561016,2.24689202,1948.6,1948.1,0.001]
[1772308561313,3.52986794,1948.6,1948.1,0.001]
[1772308561551,0.49889202,1948.5,1948.1,0.001]
[1772308562819,0.49889202,1948.4,1947.5,0.47991599]
[1772308563412,0.49889202,1948.2,1947.5,0.47991599]
[1772308563618,2.24689202,1948.1,1947.5,0.47991599]
[1772308563816,2.24689202,1948.1,1947.1,0.001]
[1772308563817,0.49889202,1948.0,1947.1,0.001]
[1772308564046,0.49889202,1948.0,1947.1,0.48091599]
[1772308564253,4.79477689,1947.8,1947.1,0.001]
[1772308564543,0.49889202,1947.7,1947.1,0.001]
[1772308564748,1.748,1947.6,1947.1,0.001]
[1772308565161,2.24689202,1947.6,1946.8,0.47991599]
[1772308565361,2.24689202,1947.6,1946.8,1.76405987]
[1772308565362,0.49889202,1947.5,1946.8,1.76405987]
[1772308565828,0.18685624,1948.3,1946.8,1.76405987]
[1772308565829,0.37303689,1948.7,1947.5,0.47991599]
[1772308566018,0.37303689,1948.6,1947.5,0.48091599]
[1772308566227,5.13136288,1948.9,1947.8,0.47991599]
[1772308566228,2.12003689,1948.9,1947.8,0.47991599]
[1772308566942,1.747,1948.9,1947.8,0.47991599]
[1772308567358,0.065536,1949.1,1947.8,0.47991599]
[1772308567664,0.065536,1949.1,1948.1,0.47991599]
[1772308567665,1.28270908,1949.0,1948.1,0.47991599]
[1772308567854,1.72126628,1949.1,1948.1,0.47991599]
[1772308568369,0.37303689,1949.0,1948.1,0.47991599]
[1772308570443,1.28277489,1948.9,1948.1,0.47991599]
[1772308570763,2.11703689,1948.8,1948.1,1.7632173]
[1772308571070,0.37303689,1948.8,1948.1,1.7632173]
[1772308571242,0.37303689,1948.6,1947.8,0.47991599]
[1772308571436,0.37303689,1948.6,1947.5,1.76461266]
[1772308571867,0.37303689,1948.6,1947.6,0.47991599]
[1772308572665,1.65607512,1948.5,1947.6,1.76348594]
[1772308573653,1.65607512,1948.5,1947.7,0.47991599]
[1772308573861,1.744,1948.7,1947.9,0.47991599]
[1772308573862,1.742,1948.4,1947.9,0.47991599]
[1772308575573,3.02511527,1948.4,1947.6,1.76350344]
[1772308575744,3.39815216,1948.4,1947.6,0.47991599]
[1772308577282,3.39815216,1948.4,1947.6,1.76353919]
[1772308577480,3.39815216,1948.4,1947.6,1.2836232]
[1772308577682,3.39815216,1948.4,1947.7,0.48025146]
[1772308577858,1.28311527,1948.4,1947.7,0.48025146]
[1772308578062,1.741,1948.3,1947.7,0.48025146]
[1772308578662,1.743,1948.3,1947.7,0.48025146]
[1772308578868,1.743,1948.3,1947.8,1.76375079]
[1772308579255,1.743,1948.3,1947.8,0.48025146]
[1772308579868,1.743,1948.3,1947.6,0.001]
[1772308579869,0.37303689,1948.2,1947.6,0.001]
[1772308580049,0.002,1948.3,1947.7,0.48025146]
[1772308580784,1.741,1948.3,1947.7,0.48025146]
[1772308581153,1.741,1948.3,1947.9,0.48025146]
[1772308584256,1.741,1948.3,1947.6,0.48125146]
[1772308584464,3.39721514,1948.3,1947.6,0.48125146]
[1772308584669,1.65821514,1948.3,1947.6,0.48125146]
[1772308584869,1.737,1948.2,1947.6,0.48125146]
[1772308585074,1.737,1948.2,1947.6,1.76486537]
[1772308585291,1.28517825,1948.3,1947.7,0.48025146]
[1772308585595,1.737,1948.1,1947.7,0.48025146]
[1772308588289,0.002,1948.3,1947.7,1.76381661]
[1772308588790,0.869,1948.2,1947.8,0.48025146]
[1772308589189,0.869,1948.2,1947.6,0.48125146]
[1772308589898,0.869,1948.2,1947.6,1.7648763]
[1772308590466,0.871,1948.2,1947.6,1.28462484]
[1772308590689,0.871,1948.2,1947.7,0.48025146]
[1772308591572,0.002,1948.2,1947.7,0.48025146]
[1772308592097,0.002,1948.2,1947.9,0.48025146]
[1772308592991,0.002,1948.2,1947.7,5.13399733]
[1772308592992,0.002,1948.2,1947.7,1.76376491]
[1772308593191,1.735,1948.2,1947.7,1.76376491]
[1772308594097,1.735,1948.2,1947.8,0.48025146]
[1772308594598,3.39128316,1948.2,1947.6,0.48125146]
[1772308594794,2.10803689,1948.2,1947.6,1.76487604]
[1772308596282,3.39127344,1948.2,1947.6,0.48125146]
[1772308596494,2.10803689,1948.2,1947.6,1.76487398]
[1772308596795,1.731,1948.1,1947.7,0.48025146]
[1772308597470,0.002,1948.2,1947.7,0.48025146]
[1772308598101,0.002,1948.2,1947.8,1.76375079]
[1772308598396,0.002,1948.2,1947.9,0.48025146]
[1772308598573,0.002,1948.2,1947.7,1.76377047]
[1772308598778,0.002,1948.2,1947.6,0.001]
[1772308598779,0.37503689,1948.2,1947.6,0.001]
[1772308599088,0.37503689,1948.2,1947.6,1.76488238]
[1772308599290,0.37503689,1948.2,1947.6,1.76488157]
[1772308599872,0.37503689,1948.2,1947.6,0.001]
[1772308600399,1.65633856,1948.1,1947.6,0.001]
[1772308602080,0.37303689,1948.0,1947.1,1.28390991]
[1772308602269,1.28349933,1947.8,1947.2,1.76413931]
[1772308602896,1.28349933,1947.8,1947.2,0.48025146]
[1772308603106,1.65553622,1947.8,1947.6,0.001]
[1772308603877,1.28340911,1948.0,1947.6,0.001]
[1772308604101,1.73,1947.9,1947.6,0.001]
[1772308604305,3.38551554,1947.9,1947.6,0.001]
[1772308606307,0.37203689,1947.8,1946.9,0.45245467]
[1772308606497,0.37203689,1947.7,1946.7,0.45245467]
[1772308608008,0.37203689,1947.7,1946.5,5.13716223]
[1772308608009,0.37203689,1947.4,1946.5,1.28434651]
[1772308608307,3.01587527,1947.3,1946.7,0.45245467]
[1772308609074,3.38791216,1947.3,1946.7,0.45245467]
[1772308609278,3.38787216,1947.3,1946.7,0.45245467]
[1772308609675,1.732,1947.2,1946.7,0.45245467]
[1772308610414,1.732,1947.2,1946.7,1.73667491]
[1772308610600,3.01589813,1947.2,1946.7,0.45245467]
[1772308610800,3.01589813,1947.2,1946.5,1.28430104]
[1772308611107,0.37203689,1947.1,1946.5,1.73675571]
[1772308613120,1.731,1947.0,1946.6,0.45245467]
[1772308614325,0.37203689,1946.9,1946.1,0.45245467]
[1772308614524,1.731,1946.8,1946.2,0.45245467]
[1772308614820,1.28422458,1946.7,1946.2,0.45245467]
[1772308615025,1.28422458,1946.7,1946.0,5.1386024]
[1772308615026,1.65626147,1946.7,1946.0,0.45245467]
[1772308615228,0.37203689,1946.8,1945.9,0.45245467]
[1772308615396,0.37203689,1946.7,1945.9,0.45245467]
[1772308615599,0.989,1946.6,1945.9,0.45245467]
[1772308616302,1.36103689,1946.6,1945.9,0.45245467]
[1772308616508,0.37203689,1946.6,1945.9,0.45245467]
[1772308616821,1.73,1946.5,1946.0,1.28468653]
[1772308617025,1.73,1946.5,1946.0,1.7371412]
[1772308617808,1.73,1946.4,1946.0,1.7371412]
[1772308618025,1.73,1946.4,1946.0,0.45245467]
[1772308618402,1.73,1946.4,1946.3,0.001]
[1772308619809,1.73,1946.5,1946.3,0.001]
[1772308620012,1.73,1947.0,1946.3,0.45345467]
[1772308620209,1.6579436,1947.2,1946.3,0.45345467]
[1772308620429,0.916,1947.1,1946.3,0.45345467]
[1772308621018,0.916,1947.1,1946.5,0.45245467]
[1772308621019,1.729,1947.1,1946.5,0.45245467]
[1772308621410,3.01296099,1947.1,1946.5,0.45245467]
[1772308621612,1.729,1947.1,1946.5,0.45245467]
[1772308621921,3.01297753,1947.1,1946.5,0.45245467]
[1772308623220,3.01297753,1947.1,1946.3,5.13869009]
[1772308623221,1.729,1947.1,1946.6,1.73674522]
[1772308623634,2.10103689,1947.1,1946.6,1.28429055]
[1772308623842,1.729,1947.0,1946.6,1.28429055]
[1772308624032,1.729,1947.0,1946.6,1.73674522]
[1772308624222,1.729,1947.1,1946.7,0.45245467]
[1772308625427,1.729,1947.1,1946.7,1.73666481]
[1772308626011,1.729,1947.1,1946.7,0.45245467]
[1772308626313,1.729,1947.1,1946.5,0.45245467]
[1772308627237,0.37403689,1947.2,1946.6,1.73674522]
[1772308627417,0.002,1947.2,1946.7,0.45245467]
[1772308627627,0.002,1947.2,1946.8,0.45245467]
[1772308628714,0.37203689,1947.1,1946.3,0.001]
[1772308628913,0.37203689,1947.1,1946.3,0.45345467]
[1772308629111,2.09903689,1947.0,1946.4,0.45245467]
[1772308629313,1.28409266,1946.9,1946.4,0.45245467]
[1772308629538,1.65612955,1946.9,1946.3,1.2854804]
[1772308630012,0.37203689,1946.8,1946.3,0.001]
[1772308630718,0.37203689,1946.8,1946.7,0.001]
[1772308630932,0.37203689,1946.8,1946.3,0.001]
[1772308631137,0.37203689,1946.8,1946.5,0.001]
[1772308631446,1.65625999,1946.8,1946.5,0.001]
[1772308632416,0.37203689,1946.7,1946.5,0.001]
[1772308632617,0.37203689,1946.7,1946.0,1.73713836]
[1772308633119,0.37203689,1946.7,1945.7,5.13940262]
[1772308633351,1.2842231,1946.8,1944.4,0.45245467]
[1772308633352,6.8567779,1945.8,1944.4,0.45245467]
[1772308633584,0.37203689,1945.9,1944.8,0.45245467]
[1772308633585,0.065536,1945.6,1944.8,0.45245467]
[1772308633849,1.728,1945.5,1944.9,2.17045467]
[1772308634052,3.85436421,1945.4,1945.0,1.718]
[1772308634254,3.48126268,1945.3,1945.0,1.718]
[1772308634941,1.728,1945.2,1945.0,1.718]
[1772308635138,3.62776268,1945.1,1945.0,1.718]
[1772308635338,0.37203689,1945.0,1944.3,1.73821524]
[1772308635650,0.37203689,1945.0,1944.4,0.74388157]
[1772308636216,0.37203689,1945.0,1944.1,1.28590396]
[1772308636656,0.37203689,1945.0,1943.9,3.94222507]
[1772308636830,0.37203689,1944.8,1943.8,1.28609961]
[1772308637030,0.37203689,1944.8,1943.4,4.81693604]
[1772308637031,0.37203689,1944.5,1943.4,0.45082145]
[1772308637342,1.28574367,1944.4,1943.5,1.73716052]
[1772308637849,1.727,1944.3,1943.6,0.45082145]
[1772308638354,1.727,1944.2,1943.6,0.45082145]
[1772308638763,1.76646109,1944.1,1943.6,0.45082145]
[1772308638977,1.76646109,1944.1,1943.5,1.28633907]
[1772308639134,1.727,1944.5,1943.7,5.01450905]
[1772308639334,1.727,1944.5,1943.8,1.28614054]
[1772308639335,3.01273991,1944.5,1943.8,1.28614054]
[1772308639730,3.01268167,1944.5,1943.8,1.28614054]
[1772308640144,0.913,1944.4,1943.8,1.28614054]
[1772308640741,0.45989129,1944.6,1943.8,1.73696199]
[1772308640944,1.726,1944.8,1944.1,0.45082145]
[1772308641158,1.726,1944.8,1943.9,0.45082145]
[1772308641355,1.74550272,1944.6,1943.6,0.45082145]
[1772308641560,2.18589129,1944.6,1943.6,0.45082145]
[1772308641947,0.45989129,1944.5,1943.6,0.45082145]
[1772308642968,0.45989129,1944.3,1943.3,0.45082145]
[1772308643173,1.607,1944.2,1943.3,0.45082145]
[1772308643380,1.28600823,1944.0,1943.3,0.45082145]
[1772308643539,0.45989129,1943.9,1943.0,1.73745906]
[1772308644165,0.45989129,1943.9,1942.8,4.96985464]
[1772308644166,2.99038205,1943.9,1942.8,1.43969064]
[1772308644371,0.45989129,1943.8,1942.8,1.89051209]
[1772308644573,5.14403292,1944.1,1943.2,0.45082145]
[1772308644574,1.725,1943.7,1943.2,0.45082145]
[1772308645152,1.725,1943.9,1943.7,0.001]
[1772308645373,1.7457509,1944.3,1943.7,0.001]
[1772308645743,1.724,1944.2,1943.7,0.001]
[1772308646551,0.45989129,1944.1,1943.2,1.28649834]
[1772308646751,1.28585961,1944.3,1943.3,0.45082145]
[1772308647068,1.724,1944.2,1943.3,0.45082145]
[1772308647238,1.74566517,1944.4,1943.3,0.45082145]
[1772308647239,1.725,1944.1,1943.3,0.45082145]
[1772308647437,1.725,1944.1,1943.4,1.28640526]
[1772308647642,1.724,1944.0,1943.5,0.45082145]
[1772308647971,1.74549297,1944.7,1943.7,0.45082145]
[1772308648342,5.14176327,1944.9,1943.7,0.45082145]
[1772308648343,1.724,1944.6,1943.7,0.45082145]
[1772308649478,3.00961687,1944.6,1943.8,1.28614054]
[1772308649773,3.46951199,1944.6,1943.8,1.28614054]
[1772308650072,0.45989129,1944.5,1943.3,0.45082145]
[1772308650280,1.495,1944.4,1943.5,0.45082145]
[1772308650446,0.45989129,1944.5,1943.5,0.45082145]
[1772308650642,1.485,1944.4,1943.5,0.45082145]
[1772308651578,1.228,1944.4,1943.6,1.73709434]
[1772308652185,1.228,1944.4,1943.6,1.28627289]
[1772308652362,1.228,1944.4,1943.7,0.45082145]
[1772308652552,5.14166156,1944.9,1944.1,5.26775749]
[1772308652553,1.722,1944.9,1944.1,5.26775749]
[1772308652750,1.722,1944.9,1943.8,0.45082145]
[1772308652751,2.18189129,1944.9,1943.8,0.45082145]
[1772308652956,0.45989129,1944.8,1943.8,0.45082145]
[1772308653475,2.15556013,1944.7,1943.9,1.28607438]
[1772308653695,1.721,1944.6,1943.9,1.73689583]
[1772308653890,1.721,1944.6,1944.1,0.45082145]
[1772308653891,0.25027661,1944.6,1944.1,0.45082145]
[1772308654120,0.065536,1945.6,1944.1,0.45082145]
[1772308654398,3.084,1946.4,1944.7,0.45082145]
[1772308654399,0.45989129,1945.9,1944.7,0.45082145]
[1772308654557,5.13863569,1946.1,1945.0,0.45082145]
[1772308654558,1.682,1946.1,1945.0,0.45082145]
[1772308654756,3.89694744,1946.6,1945.0,0.45082145]
[1772308654757,9.95461673,1946.5,1945.0,0.45082145]
[1772308654964,0.45989129,1946.1,1945.0,0.45082145]
[1772308655294,1.29089129,1946.1,1945.1,0.45082145]
[1772308655590,1.29089129,1946.1,1945.2,1.28521488]
[1772308655789,2.575512,1946.1,1945.2,1.28521488]
[1772308655995,0.45989129,1946.1,1945.2,1.28521488]
[1772308656171,0.45989129,1946.4,1945.4,0.45082145]
[1772308656369,3.03307154,1946.3,1945.4,0.45082145]
[1772308656692,0.45989129,1946.3,1945.4,0.45082145]
[1772308657881,0.45989129,1946.2,1945.3,1.28513377]
[1772308658399,3.0387558,1946.1,1945.3,1.28513377]
[1772308658962,0.46189129,1946.2,1945.3,1.28513377]
[1772308659166,3.04071114,1946.1,1945.3,1.28513377]
[1772308659572,3.04071114,1946.1,1945.3,1.73595522]
[1772308659774,2.17889129,1946.2,1945.3,1.73595522]
[1772308659978,2.17889129,1946.2,1945.4,0.45082145]
[1772308659979,1.719,1946.2,1945.4,0.45082145]
[1772308660270,3.04222251,1946.1,1945.4,0.45082145]
[1772308660463,0.002,1946.2,1945.4,0.45082145]
[1772308660686,3.04422251,1946.2,1945.4,0.45082145]
[1772308660994,0.002,1946.2,1945.5,0.45082145]
[1772308661212,0.002,1946.3,1945.7,5.26775749]
[1772308662516,0.002,1946.3,1945.9,0.45082145]
[1772308664409,0.002,1946.3,1946.0,1.28468653]
[1772308667996,0.48589023,1946.2,1945.9,5.13874614]
[1772308668196,0.48589023,1946.2,1945.3,0.48572778]
[1772308668197,0.48589023,1945.9,1944.6,0.48572778]
[1772308668411,4.81693604,1946.0,1944.5,5.14251157]
[1772308668412,0.48589023,1945.7,1944.5,5.14251157]
[1772308668622,0.48589023,1945.6,1944.5,0.48572778]
[1772308669136,2.19689023,1945.6,1944.6,0.48572778]
[1772308670426,0.48589023,1945.5,1944.6,0.48572778]
[1772308670737,0.48589023,1945.5,1944.6,1.28556333]
[1772308670738,2.99605935,1945.5,1944.6,1.28556333]
[1772308671317,3.48194958,1945.5,1944.6,1.28556333]
[1772308671834,3.48094958,1945.5,1944.6,1.28556333]
[1772308672730,2.19589023,1945.5,1944.6,1.28556333]
[1772308672915,0.48589023,1945.5,1944.6,6.58822715]
[1772308673538,0.48589023,1945.5,1944.7,0.48572778]
[1772308674031,1.77090846,1945.5,1944.7,0.48572778]
[1772308674810,1.77090846,1945.5,1944.8,1.28547922]
[1772308675234,0.48589023,1945.5,1944.8,1.28547922]
[1772308676316,1.706,1945.7,1944.8,1.771207]
[1772308676516,0.002,1945.8,1945.0,0.48572778]
[1772308676747,0.002,1945.8,1945.1,1.28528096]
[1772308676748,1.708,1945.8,1945.1,1.28528096]
[1772308676924,0.002,1945.8,1945.1,1.28528096]
[1772308677317,0.002,1945.8,1944.8,1.28547922]
[1772308677318,0.48589023,1945.7,1944.8,1.28547922]
[1772308677720,0.48589023,1945.5,1944.8,1.28547922]
[1772308678518,3.05307833,1945.4,1944.6,0.001]
[1772308678719,1.28534704,1945.0,1943.8,1.28614054]
[1772308678939,0.48589023,1944.8,1943.8,1.77186832]
[1772308679731,1.502,1944.8,1944.1,0.48572778]
[1772308680535,0.48589023,1945.0,1944.1,0.48572778]
[1772308680740,4.76013096,1944.9,1944.1,0.48572778]
[1772308680939,2.98941794,1944.9,1944.2,1.28587593]
[1772308681154,3.0574771,1944.8,1944.2,1.28587593]
[1772308681456,1.704,1944.9,1944.2,1.28587593]
[1772308681663,0.48589023,1944.8,1943.9,1.28607438]
[1772308681950,3.54336733,1944.7,1943.9,1.28607438]
[1772308682124,0.48589023,1944.7,1943.9,1.28607438]
[1772308682450,0.48589023,1944.9,1943.7,0.48572778]
[1772308682752,3.05857345,1944.8,1943.7,0.48572778]
[1772308683050,0.48589023,1944.7,1943.7,0.48572778]
[1772308683254,0.48589023,1944.6,1943.8,1.28614054]
[1772308684169,0.48589023,1944.6,1943.8,1.77186832]
[1772308684468,0.48589023,1944.9,1943.9,0.48572778]
[1772308684640,3.0581813,1944.8,1943.9,0.48572778]
[1772308684837,3.54407153,1944.8,1943.9,0.48572778]
[1772308685077,0.48589023,1944.8,1943.9,0.48572778]
[1772308685581,0.48589023,1944.8,1944.0,1.77173601]
[1772308686967,0.48589023,1945.1,1944.2,0.48572778]
[1772308687568,0.48589023,1945.1,1944.3,1.77153758]
[1772308687951,1.77102248,1945.4,1944.4,0.48572778]
[1772308688565,0.002,1944.5,1944.4,0.48572778]
[1772308688851,0.48589023,1945.3,1944.3,1.2858098]
[1772308689061,0.002,1944.6,1944.3,1.2858098]
[1772308689262,0.48589023,1945.1,1944.3,1.77153758]
[1772308689462,0.48589023,1945.4,1944.6,0.48572778]
[1772308690177,1.77098662,1945.4,1944.6,0.48572778]
[1772308690750,0.48589023,1945.4,1944.6,0.48572778]
[1772308691979,0.48589023,1945.4,1944.7,1.28554532]
[1772308692345,0.48589023,1945.7,1944.7,1.7712731]
[1772308692664,0.48589023,1945.7,1944.8,0.48572778]
[1772308694183,0.48589023,1945.7,1944.9,1.28541313]
[1772308694474,0.48589023,1945.6,1944.7,1.77122046]
[1772308695280,0.48589023,1945.6,1944.8,0.48572778]
[1772308695577,0.48589023,1945.6,1944.7,1.28549268]
[1772308696173,0.48589023,1945.5,1944.7,1.28549268]
[1772308697681,0.47357553,1945.4,1944.5,5.14269973]
[1772308697889,2.16757553,1945.4,1944.5,5.62773482]
[1772308698092,0.47357553,1945.3,1944.5,5.62773482]
[1772308702128,0.002,1945.2,1944.5,5.62773482]
[1772308703724,0.47357553,1945.7,1945.0,3.92411153]
[1772308703919,0.47357553,1945.7,1945.1,0.48503509]
[1772308705534,0.47357553,1945.7,1945.2,1.28521488]
[1772308707069,0.002,1945.8,1945.2,1.28521488]
[1772308707070,0.002,1945.8,1945.3,0.48503509]
[1772308707548,0.47357553,1946.2,1945.4,1.77011784]
[1772308709013,0.47357553,1946.2,1945.4,1.28508275]
[1772308709349,0.47357553,1946.2,1945.5,0.48503509]
[1772308709528,0.47357553,1946.2,1945.6,1.28495065]
[1772308711843,0.47357553,1946.2,1945.6,1.76998574]
[1772308712751,0.35930001,1946.3,1945.6,1.76998574]
[1772308714148,0.83287554,1946.3,1945.6,1.76998574]
[1772308715954,0.47357553,1946.2,1945.6,1.76998574]
[1772308716154,0.47357553,1946.0,1944.9,0.48503509]
[1772308716352,0.47357553,1945.8,1944.9,0.48503509]
[1772308718350,0.47357553,1945.6,1945.0,1.28534704]
[1772308720162,0.47357553,1945.6,1945.0,0.48503509]
[1772308722132,0.47357553,1945.6,1945.1,1.28528096]
[1772308723559,2.96580311,1945.9,1945.1,1.28528096]
[1772308723560,0.47357553,1945.5,1945.1,1.28528096]
[1772308724472,3.15636903,1945.8,1944.9,0.49867334]
[1772308724769,1.28481514,1945.9,1945.2,0.49867334]
[1772308724770,0.45982744,1945.9,1945.2,0.49867334]
[1772308724939,0.45982744,1945.9,1945.0,0.49867334]
[1772308725773,0.45982744,1945.8,1944.8,5.64058749]
[1772308726334,0.45982744,1945.8,1944.8,5.61144342]
[1772308726537,1.28488461,1945.7,1944.8,5.61144342]
[1772308726736,0.49202516,1945.6,1944.8,5.61144342]
[1772308727155,0.49202516,1945.6,1944.6,0.001]
[1772308727358,0.49202516,1945.5,1944.6,1.2866011]
[1772308728437,0.49202516,1945.3,1944.6,1.2866049]
[1772308728660,0.49202516,1945.3,1944.6,0.001]
[1772308728661,0.49202516,1945.2,1944.6,0.001]
[1772308728941,0.49202516,1945.2,1945.0,30.0]
[1772308730272,0.49202516,1945.4,1945.0,30.0]
[1772308731169,0.49202516,1945.6,1945.1,1.28628096]
[1772308732838,0.49202516,1945.8,1945.1,1.75581023]
[1772308733042,0.49202516,1945.7,1945.1,1.75581023]
[1772308737891,1.7769148,1945.7,1945.1,1.75581023]
[1772308738073,0.49202516,1945.6,1945.1,1.28628096]
[1772308739285,0.49202516,1945.6,1945.1,1.75581023]
[1772308740191,1.28482431,1945.8,1945.1,1.75581023]
[1772308740348,0.49402516,1946.2,1945.5,0.46952927]
[1772308742381,0.49402516,1946.2,1945.6,1.28495065]
[1772308742779,1.77859843,1946.2,1945.6,1.28495065]
[1772308743083,0.49202516,1946.1,1945.5,1.75449719]
[1772308743251,0.49202516,1946.1,1945.6,0.46952927]
[1772308743447,1.77858387,1946.2,1945.6,0.46952927]
[1772308743752,0.49202516,1946.1,1945.5,1.28496792]
[1772308743951,0.49202516,1946.1,1945.5,1.75449719]
[1772308744376,0.002,1945.7,1945.5,1.75449719]
[1772308744578,0.002,1946.2,1945.6,0.46952927]
[1772308745282,0.002,1946.0,1945.6,0.46952927]
[1772308746475,0.002,1946.0,1945.8,0.46952927]
[1772308748481,0.002,1946.2,1945.9,1.75428182]
[1772308748685,0.002,1946.2,1946.0,0.46952927]
[1772308750580,0.002,1946.2,1946.1,1.28462052]
[1772308753064,0.002,1946.5,1946.2,0.46952927]
[1772308755186,0.002,1946.5,1946.3,1.75401778]
[1772308755487,0.49202516,1946.9,1946.3,1.75401778]
[1772308755684,0.002,1947.0,1946.4,0.46952927]
[1772308756086,0.49402516,1947.0,1946.4,0.46952927]
[1772308756664,0.49402516,1947.0,1946.3,1.28448851]
[1772308756863,0.49402516,1947.0,1946.4,0.47283426]
[1772308757286,0.49402516,1947.0,1946.5,1.28435653]
[1772308758187,0.49402516,1947.0,1946.5,1.75719079]
[1772308758392,1.655,1947.4,1946.5,1.75719079]
[1772308758393,0.48702786,1947.8,1946.9,2.74705809]
[1772308758606,0.002,1947.9,1947.3,0.47283426]
[1772308758764,0.002,1947.9,1947.4,0.832]
[1772308758965,0.002,1947.9,1947.5,0.47283426]
[1772308759164,0.36330001,1947.8,1947.6,1.28363113]
[1772308759361,0.36330001,1948.0,1947.4,2.58858374]
[1772308759674,0.36130001,1947.9,1947.4,2.58858374]
[1772308761296,0.06949071,1947.8,1947.4,2.58858374]
[1772308761493,0.48902786,1948.1,1947.4,2.58858374]
[1772308761795,0.06949071,1948.0,1947.4,2.58858374]
[1772308762369,0.06949071,1947.9,1947.5,0.47283426]
[1772308762579,0.06949071,1948.0,1947.5,0.47283426]
[1772308763095,0.002,1948.1,1947.5,0.47283426]
[1772308763604,0.002,1948.1,1947.1,5.13505186]
[1772308763605,0.48702786,1947.8,1946.7,0.47283426]
[1772308763794,0.48702786,1947.8,1946.9,0.47283426]
[1772308765471,5.13375183,1947.9,1947.1,0.47283426]
[1772308765669,0.48902786,1948.1,1947.4,0.47283426]
[1772308765670,0.002,1948.1,1947.4,0.47283426]
[1772308766593,0.002,1948.1,1947.5,0.47283426]
[1772308767501,0.002,1948.1,1947.6,1.28363113]
[1772308769465,0.002,1948.1,1947.6,1.75646539]
[1772308769869,0.002,1948.1,1947.7,0.47283426]